Workbook

Sheet Foglio Informativo
C3: Inserire il nome dell'impresa: | J3: e il codice*:
C6: Data di riferimento | E6: 31/01/2019
K9: 0
K10: 0
K11: 0
K12: 0
K13: 0
K15: 0
B16: * codice IVASS su 3 cifre (ad es. per A124S indicare 124); cfr. file Compag.xls | K16: 0
K17: 0
K18: 0
K19: 0
K22: 0
K23: 0
K24: 0
K25: 0
K27: 0
K28: 0
K29: 0
K30: 0
K31: 0
K32: 0
K33: 0

Sheet danni_inv. a utilizz. durevole
A1: ="Società: " &'Foglio Informativo'!C4 -> Società: | H1: ="Codice: "&'Foglio Informativo'!J4 -> Codice: | Q1: Modello 1.1
A2: =O1 -> 
A3: Gestione danni - Investimenti a utilizzo durevole | E3: ='Foglio Informativo'!C6&":" -> Data di riferimento: | G3: ='Foglio Informativo'!E6 -> 31/01/2019 | Q3: (valori in migliaia di Euro)
D5: Valore di carico (1) | F5: Valore corrente (2) | H5: Plusvalenze latenti | J5: Minusvalenze | L5: Saldo plus - minusvalenze | N5: Rettifiche di valore (3) | Q5: Rivalutazioni ex lege e riprese di valore (4)
A7: C.I | B7: Terreni e fabbricati (A) ……………………………… | D7: 1 | E7: 0 | F7: 31 | G7: 0 | H7: 61 | I7: 0 | J7: 91 | K7: 0 | L7: 121 | M7: =I7-K7 -> 0 | N7: 151 | O7: 0 | P7: 181 | Q7: 0
A8: C.II.1 | B8: Azioni e quote di imprese del gruppo e altre imprese partecipate ….……....……… | D8: =D7+1 -> 2 | E8: =SUM(E9:E13) -> 0 | F8: =F7+1 -> 32 | G8: =SUM(G9:G13) -> 0 | H8: =H7+1 -> 62 | I8: =SUM(I9:I13) -> 0 | J8: =J7+1 -> 92 | K8: =SUM(K9:K13) -> 0 | L8: =L7+1 -> 122 | M8: 0 | N8: 152 | O8: =SUM(O9:O13) -> 0 | P8: 182 | Q8: =SUM(Q9:Q13) -> 0
B9: a) controllanti ………………………………….. | D9: =D8+1 -> 3 | E9: 0 | F9: =F8+1 -> 33 | G9: 0 | H9: =H8+1 -> 63 | I9: 0 | J9: =J8+1 -> 93 | K9: 0 | L9: =L8+1 -> 123 | M9: 0 | N9: 153 | O9: 0 | P9: 183 | Q9: 0
B10: b) controllate ………………………………….. | D10: 4 | E10: 0 | F10: =F9+1 -> 34 | G10: 0 | H10: =H9+1 -> 64 | I10: 0 | J10: =J9+1 -> 94 | K10: 0 | L10: =L9+1 -> 124 | M10: 0 | N10: 154 | O10: 0 | P10: 184 | Q10: 0
B11: c) consociate ………………………………….. | D11: =D10+1 -> 5 | E11: 0 | F11: 35 | G11: 0 | H11: 65 | I11: 0 | J11: 95 | K11: 0 | L11: 125 | M11: 0 | N11: 155 | O11: 0 | P11: 185 | Q11: 0
B12: d) collegate ………………………………….. | D12: 6 | E12: 0 | F12: 36 | G12: 0 | H12: 66 | I12: 0 | J12: 96 | K12: 0 | L12: 126 | M12: 0 | N12: 156 | O12: 0 | P12: 186 | Q12: 0
B13: e) altre ………………………………..……….. | D13: =D12+1 -> 7 | E13: 0 | F13: =F12+1 -> 37 | G13: 0 | H13: =H12+1 -> 67 | I13: 0 | J13: =J12+1 -> 97 | K13: 0 | L13: =L12+1 -> 127 | M13: 0 | N13: 157 | O13: 0 | P13: 187 | Q13: 0
A14: C.II.2 | B14: Obbligazioni emesse da imprese del gruppo e altre imprese partecipate ………..……… | D14: 8 | E14: =SUM(E15:E19) -> 0 | F14: 38 | G14: =SUM(G15:G19) -> 0 | H14: 68 | I14: =SUM(I15:I19) -> 0 | J14: 98 | K14: =SUM(K15:K19) -> 0 | L14: 128 | M14: 0 | N14: 158 | O14: =SUM(O15:O19) -> 0 | P14: 188 | Q14: =SUM(Q15:Q19) -> 0
B15: a) controllanti ………………………………….. | D15: 9 | E15: 0 | F15: 39 | G15: 0 | H15: 69 | I15: 0 | J15: 99 | K15: 0 | L15: 129 | M15: 0 | N15: 159 | O15: 0 | P15: 189 | Q15: 0
B16: b) controllate ………………………………….. | D16: 10 | E16: 0 | F16: 40 | G16: 0 | H16: 70 | I16: 0 | J16: 100 | K16: 0 | L16: 130 | M16: 0 | N16: 160 | O16: 0 | P16: 190 | Q16: 0
B17: c) consociate ………………………………….. | D17: 11 | E17: 0 | F17: 41 | G17: 0 | H17: 71 | I17: 0 | J17: 101 | K17: 0 | L17: 131 | M17: 0 | N17: 161 | O17: 0 | P17: 191 | Q17: 0
B18: d) collegate ………………………………….. | D18: 12 | E18: 0 | F18: 42 | G18: 0 | H18: 72 | I18: 0 | J18: 102 | K18: 0 | L18: 132 | M18: 0 | N18: 162 | O18: 0 | P18: 192 | Q18: 0
B19: e) altre ………………………………..……….. | D19: 13 | E19: 0 | F19: 43 | G19: 0 | H19: 73 | I19: 0 | J19: 103 | K19: 0 | L19: 133 | M19: 0 | N19: 163 | O19: 0 | P19: 193 | Q19: 0
A20: Totale C.II.1 e C.II.2 (B) …………………………………….. | D20: 14 | E20: =SUM(E8,E14) -> 0 | F20: 44 | G20: =SUM(G8,G14) -> 0 | H20: 74 | I20: =SUM(I8,I14) -> 0 | J20: 104 | K20: =SUM(K8,K14) -> 0 | L20: 134 | M20: 0 | N20: 164 | O20: =SUM(O8,O14) -> 0 | P20: 194 | Q20: =SUM(Q8,Q14) -> 0
A21: C.III.1 | B21: Azioni e quote di imprese: ...................................................................................................................... | D21: 15 | E21: =SUM(E22:E24) -> 0 | F21: 45 | G21: =SUM(G22:G24) -> 0 | H21: 75 | I21: =SUM(I22:I24) -> 0 | J21: 105 | K21: =SUM(K22:K24) -> 0 | L21: 135 | M21: 0 | N21: 165 | O21: =SUM(O22:O24) -> 0 | P21: 195 | Q21: =SUM(Q22:Q24) -> 0
B22: a) azioni quotate ....................................................................................................... | D22: =D21+1 -> 16 | E22: 0 | F22: =F21+1 -> 46 | G22: 0 | H22: =H21+1 -> 76 | I22: 0 | J22: =J21+1 -> 106 | K22: 0 | L22: =L21+1 -> 136 | M22: 0 | N22: 166 | O22: 0 | P22: 196 | Q22: 0
B23: b) azioni non quotate ....................................................................................................... | D23: 17 | E23: 0 | F23: 47 | G23: 0 | H23: 77 | I23: 0 | J23: 107 | K23: 0 | L23: 137 | M23: 0 | N23: 167 | O23: 0 | P23: 197 | Q23: 0
B24: c) quote .................................................................................................................................. | D24: 18 | E24: 0 | F24: 48 | G24: 0 | H24: 78 | I24: 0 | J24: 108 | K24: 0 | L24: 138 | M24: 0 | N24: 168 | O24: 0 | P24: 198 | Q24: 0
A25: C.III.2 | B25: Quote di fondi comuni di investimento .......................................................................... | D25: 19 | E25: 0 | F25: 49 | G25: 0 | H25: 79 | I25: 0 | J25: 109 | K25: 0 | L25: 139 | M25: 0 | N25: 169 | O25: 0 | P25: 199 | Q25: 0
A26: C.III.3 | B26: Obbligazioni e altri titoli a reddito fisso ......................................................................................... | D26: 20 | E26: =SUM(E27:E31) -> 0 | F26: 50 | G26: =SUM(G27:G31) -> 0 | H26: 80 | I26: =SUM(I27:I31) -> 0 | J26: 110 | K26: =SUM(K27:K31) -> 0 | L26: 140 | M26: 0 | N26: 170 | O26: =SUM(O27:O31) -> 0 | P26: 200 | Q26: =SUM(Q27:Q31) -> 0
B27: a1) titoli di Stato quotati ....................................................................................................... | D27: 21 | E27: 0 | F27: 51 | G27: 0 | H27: 81 | I27: 0 | J27: 111 | K27: 0 | L27: 141 | M27: 0 | N27: 171 | O27: 0 | P27: 201 | Q27: 0
B28: a2) altri titoli quotati ....................................................................................................... | D28: 22 | E28: 0 | F28: 52 | G28: 0 | H28: 82 | I28: 0 | J28: 112 | K28: 0 | L28: 142 | M28: 0 | N28: 172 | O28: 0 | P28: 202 | Q28: 0
B29: b1) titoli di Stato non quotati ....................................................................................................... | D29: 23 | E29: 0 | F29: 53 | G29: 0 | H29: 83 | I29: 0 | J29: 113 | K29: 0 | L29: 143 | M29: 0 | N29: 173 | O29: 0 | P29: 203 | Q29: 0
B30: b2) altri titoli non quotati ....................................................................................................... | D30: 24 | E30: 0 | F30: 54 | G30: 0 | H30: 84 | I30: 0 | J30: 114 | K30: 0 | L30: 144 | M30: 0 | N30: 174 | O30: 0 | P30: 204 | Q30: 0
B31: c) obbligazioni convertibili ....................................................................................................... | D31: 25 | E31: 0 | F31: 55 | G31: 0 | H31: 85 | I31: 0 | J31: 115 | K31: 0 | L31: 145 | M31: 0 | N31: 175 | O31: 0 | P31: 205 | Q31: 0
A32: C.III.5 | B32: Quote in investimenti comuni …………………… | D32: 26 | E32: 0 | F32: 56 | G32: 0 | H32: 86 | I32: 0 | J32: 116 | K32: 0 | L32: 146 | M32: 0 | N32: 176 | O32: 0 | P32: 206 | Q32: 0
A33: C.III.7 | B33: Investimenti finanziari diversi ………………….. | D33: 27 | E33: 0 | F33: 57 | G33: 0 | H33: 87 | I33: 0 | J33: 117 | K33: 0 | L33: 147 | M33: 0 | N33: 177 | O33: 0 | P33: 207 | Q33: 0
A34: Totale C.III.1, 2, 3, 5, 7 (C) …………………………………….. | D34: =D33+1 -> 28 | E34: =SUM(E21,E25,E26,E32,E33) -> 0 | F34: =F33+1 -> 58 | G34: =SUM(G21,G25,G26,G32,G33) -> 0 | H34: =H33+1 -> 88 | I34: =SUM(I21,I25,I26,I32,I33) -> 0 | J34: =J33+1 -> 118 | K34: =SUM(K21,K25,K26,K32,K33) -> 0 | L34: =L33+1 -> 148 | M34: 0 | N34: 178 | O34: =SUM(O21,O25,O26,O32,O33) -> 0 | P34: 208 | Q34: =SUM(Q21,Q25,Q26,Q32,Q33) -> 0
A35: Totale generale (A + B + C) ………………………… | D35: =D34+1 -> 29 | E35: =SUM(E7,E20,E34) -> 0 | F35: =F34+1 -> 59 | G35: =SUM(G7,G20,G34) -> 0 | H35: =H34+1 -> 89 | I35: =SUM(I7,I20,I34) -> 0 | J35: =J34+1 -> 119 | K35: =SUM(K7,K20,K34) -> 0 | L35: =L34+1 -> 149 | M35: 0 | N35: 179 | O35: =SUM(O7,O20,O34) -> 0 | P35: 209 | Q35: =SUM(Q7,Q20,Q34) -> 0
A38: (1) Dovrà essere riportato il valore di carico senza operare alcuna rettifica infrannuale
A39: (2) Ai soli fini del monitoraggio in oggetto, nella determinazione del valore corrente degli investimenti quotati in mercati regolamentati, dovrà essere utilizzato il valore dell'ultimo giorno di transazione di ciascun mese
A40: (3) Dovranno essere riportate le rettifiche di valore operate rispetto al valore di carico evidenziato nell'ultimo monitoraggio dell'anno precedente.
A41: (4) Dovranno essere riportate le eventuali rivalutazioni su immobili operate ai sensi dell'art. 15, commi 16-23, del D. lgs 185/08 convertito con legge 2/09 e le eventuali riprese di valore operate su altri attivi rispetto al valore di carico evidenziato nell'ultimo monitoraggio dell'anno precedente.

Sheet danni_inv. a utilizz. non durev
A1: ="Società: " &'Foglio Informativo'!C4 -> Società: | H1: ="Codice: "&'Foglio Informativo'!J4 -> Codice: | Q1: Modello 1.2
A3: Gestione danni - Investimenti a utilizzo non durevole | E3: ='Foglio Informativo'!C6&":" -> Data di riferimento: | G3: ='Foglio Informativo'!E6 -> 31/01/2019 | Q3: (valori in migliaia di Euro)
D5: Valore di carico (1) | F5: Valore corrente (2) | H5: Plusvalenze latenti | J5: Minusvalenze | L5: Saldo plus - minusvalenze | N5: Rettifiche di valore (3) | Q5: Rivalutazioni ex lege e riprese di valore (4)
A7: C.I | B7: Terreni e fabbricati (A) ……………………………… | D7: 1 | E7: 0 | F7: 31 | G7: 0 | H7: 61 | I7: 0 | J7: 91 | K7: 0 | L7: 121 | M7: =I7-K7 -> 0 | N7: 151 | O7: 0 | P7: 181 | Q7: 0
A8: C.II.1 | B8: Azioni e quote di imprese del gruppo e altre imprese partecipate ….……....……… | D8: =D7+1 -> 2 | E8: =SUM(E9:E13) -> 0 | F8: =F7+1 -> 32 | G8: =SUM(G9:G13) -> 0 | H8: =H7+1 -> 62 | I8: =SUM(I9:I13) -> 0 | J8: =J7+1 -> 92 | K8: =SUM(K9:K13) -> 0 | L8: =L7+1 -> 122 | M8: 0 | N8: 152 | O8: =SUM(O9:O13) -> 0 | P8: 182 | Q8: =SUM(Q9:Q13) -> 0
B9: a) controllanti ………………………………….. | D9: 3 | E9: 0 | F9: =F8+1 -> 33 | G9: 0 | H9: =H8+1 -> 63 | I9: 0 | J9: =J8+1 -> 93 | K9: 0 | L9: 123 | M9: 0 | N9: 153 | O9: 0 | P9: 183 | Q9: 0
B10: b) controllate ………………………………….. | D10: 4 | E10: 0 | F10: =F9+1 -> 34 | G10: 0 | H10: =H9+1 -> 64 | I10: 0 | J10: =J9+1 -> 94 | K10: 0 | L10: 124 | M10: 0 | N10: 154 | O10: 0 | P10: 184 | Q10: 0
B11: c) consociate ………………………………….. | D11: 5 | E11: 0 | F11: 35 | G11: 0 | H11: 65 | I11: 0 | J11: 95 | K11: 0 | L11: 125 | M11: 0 | N11: 155 | O11: 0 | P11: 185 | Q11: 0
B12: d) collegate ………………………………….. | D12: 6 | E12: 0 | F12: 36 | G12: 0 | H12: 66 | I12: 0 | J12: 96 | K12: 0 | L12: 126 | M12: 0 | N12: 156 | O12: 0 | P12: 186 | Q12: 0
B13: e) altre ………………………………..……….. | D13: 7 | E13: 0 | F13: =F12+1 -> 37 | G13: 0 | H13: =H12+1 -> 67 | I13: 0 | J13: =J12+1 -> 97 | K13: 0 | L13: 127 | M13: 0 | N13: 157 | O13: 0 | P13: 187 | Q13: 0
A14: C.II.2 | B14: Obbligazioni emesse da imprese del gruppo e altre imprese partecipate ………..……… | D14: 8 | E14: =SUM(E15:E19) -> 0 | F14: 38 | G14: =SUM(G15:G19) -> 0 | H14: 68 | I14: =SUM(I15:I19) -> 0 | J14: 98 | K14: =SUM(K15:K19) -> 0 | L14: 128 | M14: 0 | N14: 158 | O14: =SUM(O15:O19) -> 0 | P14: 188 | Q14: =SUM(Q15:Q19) -> 0
B15: a) controllanti ………………………………….. | D15: 9 | E15: 0 | F15: 39 | G15: 0 | H15: 69 | I15: 0 | J15: 99 | K15: 0 | L15: 129 | M15: 0 | N15: 159 | O15: 0 | P15: 189 | Q15: 0
B16: b) controllate ………………………………….. | D16: 10 | E16: 0 | F16: 40 | G16: 0 | H16: 70 | I16: 0 | J16: 100 | K16: 0 | L16: 130 | M16: 0 | N16: 160 | O16: 0 | P16: 190 | Q16: 0
B17: c) consociate ………………………………….. | D17: 11 | E17: 0 | F17: 41 | G17: 0 | H17: 71 | I17: 0 | J17: 101 | K17: 0 | L17: 131 | M17: 0 | N17: 161 | O17: 0 | P17: 191 | Q17: 0
B18: d) collegate ………………………………….. | D18: 12 | E18: 0 | F18: 42 | G18: 0 | H18: 72 | I18: 0 | J18: 102 | K18: 0 | L18: 132 | M18: 0 | N18: 162 | O18: 0 | P18: 192 | Q18: 0
B19: e) altre ………………………………..……….. | D19: 13 | E19: 0 | F19: 43 | G19: 0 | H19: 73 | I19: 0 | J19: 103 | K19: 0 | L19: 133 | M19: 0 | N19: 163 | O19: 0 | P19: 193 | Q19: 0
A20: Totale C.II.1 e C.II.2 (B) …………………………………….. | D20: 14 | E20: =SUM(E8,E14) -> 0 | F20: 44 | G20: =SUM(G8,G14) -> 0 | H20: 74 | I20: =SUM(I8,I14) -> 0 | J20: 104 | K20: =SUM(K8,K14) -> 0 | L20: 134 | M20: 0 | N20: 164 | O20: =SUM(O8,O14) -> 0 | P20: 194 | Q20: =SUM(Q8,Q14) -> 0
A21: C.III.1 | B21: Azioni e quote di imprese: ...................................................................................................................... | D21: 15 | E21: =SUM(E22:E24) -> 0 | F21: 45 | G21: =SUM(G22:G24) -> 0 | H21: 75 | I21: =SUM(I22:I24) -> 0 | J21: 105 | K21: =SUM(K22:K24) -> 0 | L21: 135 | M21: 0 | N21: 165 | O21: =SUM(O22:O24) -> 0 | P21: 195 | Q21: =SUM(Q22:Q24) -> 0
B22: a) azioni quotate ....................................................................................................... | D22: 16 | E22: 0 | F22: 46 | G22: 0 | H22: 76 | I22: 0 | J22: 106 | K22: 0 | L22: 136 | M22: 0 | N22: 166 | O22: 0 | P22: 196 | Q22: 0
B23: b) azioni non quotate ....................................................................................................... | D23: 17 | E23: 0 | F23: 47 | G23: 0 | H23: 77 | I23: 0 | J23: 107 | K23: 0 | L23: 137 | M23: 0 | N23: 167 | O23: 0 | P23: 197 | Q23: 0
B24: c) quote .................................................................................................................................. | D24: 18 | E24: 0 | F24: 48 | G24: 0 | H24: 78 | I24: 0 | J24: 108 | K24: 0 | L24: 138 | M24: 0 | N24: 168 | O24: 0 | P24: 198 | Q24: 0
A25: C.III.2 | B25: Quote di fondi comuni di investimento .......................................................................... | D25: 19 | E25: 0 | F25: 49 | G25: 0 | H25: 79 | I25: 0 | J25: 109 | K25: 0 | L25: 139 | M25: 0 | N25: 169 | O25: 0 | P25: 199 | Q25: 0
A26: C.III.3 | B26: Obbligazioni e altri titoli a reddito fisso ......................................................................................... | D26: 20 | E26: =SUM(E27:E31) -> 0 | F26: 50 | G26: =SUM(G27:G31) -> 0 | H26: 80 | I26: =SUM(I27:I31) -> 0 | J26: 110 | K26: =SUM(K27:K31) -> 0 | L26: 140 | M26: 0 | N26: 170 | O26: =SUM(O27:O31) -> 0 | P26: 200 | Q26: =SUM(Q27:Q31) -> 0
B27: a1) titoli di Stato quotati ....................................................................................................... | D27: 21 | E27: 0 | F27: 51 | G27: 0 | H27: 81 | I27: 0 | J27: 111 | K27: 0 | L27: 141 | M27: 0 | N27: 171 | O27: 0 | P27: 201 | Q27: 0
B28: a2) altri titoli quotati ....................................................................................................... | D28: 22 | E28: 0 | F28: 52 | G28: 0 | H28: 82 | I28: 0 | J28: 112 | K28: 0 | L28: 142 | M28: 0 | N28: 172 | O28: 0 | P28: 202 | Q28: 0
B29: b1) titoli di Stato non quotati ....................................................................................................... | D29: 23 | E29: 0 | F29: 53 | G29: 0 | H29: 83 | I29: 0 | J29: 113 | K29: 0 | L29: 143 | M29: 0 | N29: 173 | O29: 0 | P29: 203 | Q29: 0
B30: b2) altri titoli non quotati ....................................................................................................... | D30: 24 | E30: 0 | F30: 54 | G30: 0 | H30: 84 | I30: 0 | J30: 114 | K30: 0 | L30: 144 | M30: 0 | N30: 174 | O30: 0 | P30: 204 | Q30: 0
B31: c) obbligazioni convertibili ....................................................................................................... | D31: 25 | E31: 0 | F31: 55 | G31: 0 | H31: 85 | I31: 0 | J31: 115 | K31: 0 | L31: 145 | M31: 0 | N31: 175 | O31: 0 | P31: 205 | Q31: 0
A32: C.III.5 | B32: Quote in investimenti comuni …………………… | D32: 26 | E32: 0 | F32: 56 | G32: 0 | H32: 86 | I32: 0 | J32: 116 | K32: 0 | L32: 146 | M32: 0 | N32: 176 | O32: 0 | P32: 206 | Q32: 0
A33: C.III.7 | B33: Investimenti finanziari diversi ………………….. | D33: 27 | E33: 0 | F33: 57 | G33: 0 | H33: 87 | I33: 0 | J33: 117 | K33: 0 | L33: 147 | M33: 0 | N33: 177 | O33: 0 | P33: 207 | Q33: 0
A34: Totale C.III.1, 2, 3, 5, 7 (C) …………………………………….. | D34: 28 | E34: =SUM(E21,E25,E26,E32,E33) -> 0 | F34: =F33+1 -> 58 | G34: =SUM(G21,G25,G26,G32,G33) -> 0 | H34: =H33+1 -> 88 | I34: =SUM(I21,I25,I26,I32,I33) -> 0 | J34: =J33+1 -> 118 | K34: =SUM(K21,K25,K26,K32,K33) -> 0 | L34: 148 | M34: 0 | N34: 178 | O34: =SUM(O21,O25,O26,O32,O33) -> 0 | P34: 208 | Q34: =SUM(Q21,Q25,Q26,Q32,Q33) -> 0
A35: Totale generale (A + B + C) ………………………… | D35: 29 | E35: =SUM(E7,E20,E34) -> 0 | F35: =F34+1 -> 59 | G35: =SUM(G7,G20,G34) -> 0 | H35: =H34+1 -> 89 | I35: =SUM(I7,I20,I34) -> 0 | J35: =J34+1 -> 119 | K35: =SUM(K7,K20,K34) -> 0 | L35: 149 | M35: 0 | N35: 179 | O35: =SUM(O7,O20,O34) -> 0 | P35: 209 | Q35: =SUM(Q7,Q20,Q34) -> 0
A38: (1) Dovrà essere riportato il valore di carico senza operare alcuna rettifica infrannuale
A39: (2) Ai soli fini del monitoraggio in oggetto, nella determinazione del valore corrente degli investimenti quotati in mercati regolamentati, dovrà essere utilizzato il valore dell'ultimo giorno di transazione di ciascun mese.
A40: (3) Dovranno essere riportate le rettifiche di valore operate rispetto al valore di carico evidenziato nell'ultimo monitoraggio dell'anno precedente.
A41: (4) Dovranno essere riportate le eventuali rivalutazioni su immobili operate ai sensi dell'art. 15, commi 16-23, del D. lgs 185/08 convertito con legge 2/09 e le eventuali riprese di valore operate su altri attivi rispetto al valore di carico evidenziato nell'ultimo monitoraggio dell'anno precedente.

Sheet danni_totale investimenti
A1: ="Società: " &'Foglio Informativo'!C4 -> Società: | H1: ="Codice: "&'Foglio Informativo'!J4 -> Codice: | Q1: Modello 1.3
A3: Gestione danni -Totale investimenti | E3: ='Foglio Informativo'!C6&":" -> Data di riferimento: | G3: ='Foglio Informativo'!E6 -> 31/01/2019 | Q3: (valori in migliaia di Euro)
D5: Valore di carico (1) | F5: Valore corrente (2) | H5: Plusvalenze latenti | J5: Minusvalenze | L5: Saldo plus - minusvalenze | N5: Rettifiche di valore (3) | Q5: Rivalutazioni ex lege e riprese di valore (4)
A7: C.I | B7: Terreni e fabbricati (A) ……………………………… | D7: 1 | E7: 0 | F7: 31 | G7: 0 | H7: 61 | I7: 0 | J7: 91 | K7: 0 | L7: 121 | M7: =I7-K7 -> 0 | N7: 151 | O7: 0 | P7: 181 | Q7: 0
A8: C.II.1 | B8: Azioni e quote di imprese del gruppo e altre imprese partecipate ….……....……… | D8: =D7+1 -> 2 | E8: =SUM(E9:E13) -> 0 | F8: =F7+1 -> 32 | G8: =SUM(G9:G13) -> 0 | H8: =H7+1 -> 62 | I8: =SUM(I9:I13) -> 0 | J8: =J7+1 -> 92 | K8: =SUM(K9:K13) -> 0 | L8: =L7+1 -> 122 | M8: 0 | N8: 152 | O8: =SUM(O9:O13) -> 0 | P8: 182 | Q8: =SUM(Q9:Q13) -> 0
B9: a) controllanti ………………………………….. | D9: 3 | E9: 0 | F9: =F8+1 -> 33 | G9: 0 | H9: =H8+1 -> 63 | I9: 0 | J9: =J8+1 -> 93 | K9: 0 | L9: 123 | M9: 0 | N9: 153 | O9: 0 | P9: 183 | Q9: 0
B10: b) controllate ………………………………….. | D10: 4 | E10: 0 | F10: =F9+1 -> 34 | G10: 0 | H10: =H9+1 -> 64 | I10: 0 | J10: =J9+1 -> 94 | K10: 0 | L10: 124 | M10: 0 | N10: 154 | O10: 0 | P10: 184 | Q10: 0
B11: c) consociate ………………………………….. | D11: 5 | E11: 0 | F11: 35 | G11: 0 | H11: 65 | I11: 0 | J11: 95 | K11: 0 | L11: 125 | M11: 0 | N11: 155 | O11: 0 | P11: 185 | Q11: 0
B12: d) collegate ………………………………….. | D12: 6 | E12: 0 | F12: 36 | G12: 0 | H12: 66 | I12: 0 | J12: 96 | K12: 0 | L12: 126 | M12: 0 | N12: 156 | O12: 0 | P12: 186 | Q12: 0
B13: e) altre ………………………………..……….. | D13: 7 | E13: 0 | F13: =F12+1 -> 37 | G13: 0 | H13: =H12+1 -> 67 | I13: 0 | J13: =J12+1 -> 97 | K13: 0 | L13: 127 | M13: 0 | N13: 157 | O13: 0 | P13: 187 | Q13: 0
A14: C.II.2 | B14: Obbligazioni emesse da imprese del gruppo e altre imprese partecipate ………..……… | D14: 8 | E14: =SUM(E15:E19) -> 0 | F14: 38 | G14: =SUM(G15:G19) -> 0 | H14: 68 | I14: =SUM(I15:I19) -> 0 | J14: 98 | K14: =SUM(K15:K19) -> 0 | L14: 128 | M14: 0 | N14: 158 | O14: =SUM(O15:O19) -> 0 | P14: 188 | Q14: =SUM(Q15:Q19) -> 0
B15: a) controllanti ………………………………….. | D15: 9 | E15: 0 | F15: 39 | G15: 0 | H15: 69 | I15: 0 | J15: 99 | K15: 0 | L15: 129 | M15: 0 | N15: 159 | O15: 0 | P15: 189 | Q15: 0
B16: b) controllate ………………………………….. | D16: 10 | E16: 0 | F16: 40 | G16: 0 | H16: 70 | I16: 0 | J16: 100 | K16: 0 | L16: 130 | M16: 0 | N16: 160 | O16: 0 | P16: 190 | Q16: 0
B17: c) consociate ………………………………….. | D17: 11 | E17: 0 | F17: 41 | G17: 0 | H17: 71 | I17: 0 | J17: 101 | K17: 0 | L17: 131 | M17: 0 | N17: 161 | O17: 0 | P17: 191 | Q17: 0
B18: d) collegate ………………………………….. | D18: 12 | E18: 0 | F18: 42 | G18: 0 | H18: 72 | I18: 0 | J18: 102 | K18: 0 | L18: 132 | M18: 0 | N18: 162 | O18: 0 | P18: 192 | Q18: 0
B19: e) altre ………………………………..……….. | D19: 13 | E19: 0 | F19: 43 | G19: 0 | H19: 73 | I19: 0 | J19: 103 | K19: 0 | L19: 133 | M19: 0 | N19: 163 | O19: 0 | P19: 193 | Q19: 0
A20: Totale C.II.1 e C.II.2 (B) …………………………………….. | D20: 14 | E20: =SUM(E8,E14) -> 0 | F20: 44 | G20: =SUM(G8,G14) -> 0 | H20: 74 | I20: =SUM(I8,I14) -> 0 | J20: 104 | K20: =SUM(K8,K14) -> 0 | L20: 134 | M20: 0 | N20: 164 | O20: =SUM(O8,O14) -> 0 | P20: 194 | Q20: =SUM(Q8,Q14) -> 0
A21: C.III.1 | B21: Azioni e quote di imprese: ...................................................................................................................... | D21: 15 | E21: =SUM(E22:E24) -> 0 | F21: 45 | G21: =SUM(G22:G24) -> 0 | H21: 75 | I21: =SUM(I22:I24) -> 0 | J21: 105 | K21: =SUM(K22:K24) -> 0 | L21: 135 | M21: 0 | N21: 165 | O21: =SUM(O22:O24) -> 0 | P21: 195 | Q21: =SUM(Q22:Q24) -> 0
B22: a) azioni quotate ....................................................................................................... | D22: 16 | E22: 0 | F22: 46 | G22: 0 | H22: 76 | I22: 0 | J22: 106 | K22: 0 | L22: 136 | M22: 0 | N22: 166 | O22: 0 | P22: 196 | Q22: 0
B23: b) azioni non quotate ....................................................................................................... | D23: 17 | E23: 0 | F23: 47 | G23: 0 | H23: 77 | I23: 0 | J23: 107 | K23: 0 | L23: 137 | M23: 0 | N23: 167 | O23: 0 | P23: 197 | Q23: 0
B24: c) quote .................................................................................................................................. | D24: 18 | E24: 0 | F24: 48 | G24: 0 | H24: 78 | I24: 0 | J24: 108 | K24: 0 | L24: 138 | M24: 0 | N24: 168 | O24: 0 | P24: 198 | Q24: 0
A25: C.III.2 | B25: Quote di fondi comuni di investimento .......................................................................... | D25: 19 | E25: 0 | F25: 49 | G25: 0 | H25: 79 | I25: 0 | J25: 109 | K25: 0 | L25: 139 | M25: 0 | N25: 169 | O25: 0 | P25: 199 | Q25: 0
A26: C.III.3 | B26: Obbligazioni e altri titoli a reddito fisso ......................................................................................... | D26: 20 | E26: =SUM(E27:E31) -> 0 | F26: 50 | G26: =SUM(G27:G31) -> 0 | H26: 80 | I26: =SUM(I27:I31) -> 0 | J26: 110 | K26: =SUM(K27:K31) -> 0 | L26: 140 | M26: 0 | N26: 170 | O26: =SUM(O27:O31) -> 0 | P26: 200 | Q26: =SUM(Q27:Q31) -> 0
B27: a1) titoli di Stato quotati ....................................................................................................... | D27: 21 | E27: 0 | F27: 51 | G27: 0 | H27: 81 | I27: 0 | J27: 111 | K27: 0 | L27: 141 | M27: 0 | N27: 171 | O27: 0 | P27: 201 | Q27: 0
B28: a2) altri titoli quotati ....................................................................................................... | D28: 22 | E28: 0 | F28: 52 | G28: 0 | H28: 82 | I28: 0 | J28: 112 | K28: 0 | L28: 142 | M28: 0 | N28: 172 | O28: 0 | P28: 202 | Q28: 0
B29: b1) titoli di Stato non quotati ....................................................................................................... | D29: 23 | E29: 0 | F29: 53 | G29: 0 | H29: 83 | I29: 0 | J29: 113 | K29: 0 | L29: 143 | M29: 0 | N29: 173 | O29: 0 | P29: 203 | Q29: 0
B30: b2) altri titoli non quotati ....................................................................................................... | D30: 24 | E30: 0 | F30: 54 | G30: 0 | H30: 84 | I30: 0 | J30: 114 | K30: 0 | L30: 144 | M30: 0 | N30: 174 | O30: 0 | P30: 204 | Q30: 0
B31: c) obbligazioni convertibili ....................................................................................................... | D31: 25 | E31: 0 | F31: 55 | G31: 0 | H31: 85 | I31: 0 | J31: 115 | K31: 0 | L31: 145 | M31: 0 | N31: 175 | O31: 0 | P31: 205 | Q31: 0
A32: C.III.5 | B32: Quote in investimenti comuni …………………… | D32: 26 | E32: 0 | F32: 56 | G32: 0 | H32: 86 | I32: 0 | J32: 116 | K32: 0 | L32: 146 | M32: 0 | N32: 176 | O32: 0 | P32: 206 | Q32: 0
A33: C.III.7 | B33: Investimenti finanziari diversi ………………….. | D33: 27 | E33: 0 | F33: 57 | G33: 0 | H33: 87 | I33: 0 | J33: 117 | K33: 0 | L33: 147 | M33: 0 | N33: 177 | O33: 0 | P33: 207 | Q33: 0
A34: Totale C.III.1, 2, 3, 5, 7 (C) …………………………………….. | D34: 28 | E34: =SUM(E21,E25,E26,E32,E33) -> 0 | F34: =F33+1 -> 58 | G34: =SUM(G21,G25,G26,G32,G33) -> 0 | H34: =H33+1 -> 88 | I34: =SUM(I21,I25,I26,I32,I33) -> 0 | J34: =J33+1 -> 118 | K34: =SUM(K21,K25,K26,K32,K33) -> 0 | L34: 148 | M34: 0 | N34: 178 | O34: =SUM(O21,O25,O26,O32,O33) -> 0 | P34: 208 | Q34: =SUM(Q21,Q25,Q26,Q32,Q33) -> 0
A35: Totale generale (A + B + C) ………………………… | D35: 29 | E35: =SUM(E7,E20,E34) -> 0 | F35: =F34+1 -> 59 | G35: =SUM(G7,G20,G34) -> 0 | H35: =H34+1 -> 89 | I35: =SUM(I7,I20,I34) -> 0 | J35: =J34+1 -> 119 | K35: =SUM(K7,K20,K34) -> 0 | L35: 149 | M35: 0 | N35: 179 | O35: =SUM(O7,O20,O34) -> 0 | P35: 209 | Q35: =SUM(Q7,Q20,Q34) -> 0
A38: (1) Dovrà essere riportato il valore di carico senza operare alcuna rettifica infrannuale
A39: (2) Ai soli fini del monitoraggio in oggetto, nella determinazione del valore corrente degli investimenti quotati in mercati regolamentati, dovrà essere utilizzato il valore dell'ultimo giorno di transazione di ciascun mese
A40: (3) Dovranno essere riportate le rettifiche di valore operate rispetto al valore di carico evidenziato nell'ultimo monitoraggio dell'anno precedente.
A41: (4) Dovranno essere riportate le eventuali rivalutazioni su immobili operate ai sensi dell'art. 15, commi 16-23, del D. lgs 185/08 convertito con legge 2/09 e le eventuali riprese di valore operate su altri attivi rispetto al valore di carico evidenziato nell'ultimo monitoraggio dell'anno precedente.

Sheet vita_inv. a utilizz. durevole
A1: ="Società: " &'Foglio Informativo'!C4 -> Società: | H1: ="Codice: "&'Foglio Informativo'!J4 -> Codice: | Q1: Modello 1.4
A3: Gestione vita - Investimenti a utilizzo durevole | E3: ='Foglio Informativo'!C6&":" -> Data di riferimento: | G3: ='Foglio Informativo'!E6 -> 31/01/2019 | Q3: (valori in migliaia di Euro)
D5: Valore di carico (1) | F5: Valore corrente (2) | H5: Plusvalenze latenti | J5: Minusvalenze | L5: Saldo plus - minusvalenze | N5: Rettifiche di valore (3) | Q5: Rivalutazioni ex lege e riprese di valore (4)
A7: C.I | B7: Terreni e fabbricati (A) ……………………………… | D7: 1 | E7: 0 | F7: 31 | G7: 0 | H7: 61 | I7: 0 | J7: 91 | K7: 0 | L7: 121 | M7: =I7-K7 -> 0 | N7: 151 | P7: 181 | Q7: 0
A8: C.II.1 | B8: Azioni e quote di imprese del gruppo e altre imprese partecipate ….……....……… | D8: =D7+1 -> 2 | E8: =SUM(E9:E13) -> 0 | F8: =F7+1 -> 32 | G8: =SUM(G9:G13) -> 0 | H8: =H7+1 -> 62 | I8: =SUM(I9:I13) -> 0 | J8: =J7+1 -> 92 | K8: =SUM(K9:K13) -> 0 | L8: =L7+1 -> 122 | M8: =I8-K8 -> 0 | N8: 152 | O8: =SUM(O9:O13) -> 0 | P8: 182 | Q8: =SUM(Q9:Q13) -> 0
B9: a) controllanti ………………………………….. | D9: 3 | E9: 0 | F9: 33 | G9: 0 | H9: 63 | I9: 0 | J9: 93 | K9: 0 | L9: 123 | M9: 0 | N9: 153 | P9: 183 | Q9: 0
B10: b) controllate ………………………………….. | D10: 4 | E10: 0 | F10: 34 | G10: 0 | H10: 64 | I10: 0 | J10: 94 | K10: 0 | L10: 124 | M10: 0 | N10: 154 | P10: 184 | Q10: 0
B11: c) consociate ………………………………….. | D11: 5 | E11: 0 | F11: 35 | G11: 0 | H11: 65 | I11: 0 | J11: 95 | K11: 0 | L11: 125 | M11: 0 | N11: 155 | P11: 185 | Q11: 0
B12: d) collegate ………………………………….. | D12: 6 | E12: 0 | F12: 36 | G12: 0 | H12: 66 | I12: 0 | J12: 96 | K12: 0 | L12: 126 | M12: 0 | N12: 156 | P12: 186 | Q12: 0
B13: e) altre ………………………………..……….. | D13: 7 | E13: 0 | F13: 37 | G13: 0 | H13: 67 | I13: 0 | J13: 97 | K13: 0 | L13: 127 | M13: 0 | N13: 157 | P13: 187 | Q13: 0
A14: C.II.2 | B14: Obbligazioni emesse da imprese del gruppo e altre imprese partecipate ………..……… | D14: 8 | E14: =SUM(E15:E19) -> 0 | F14: 38 | G14: =SUM(G15:G19) -> 0 | H14: 68 | I14: =SUM(I15:I19) -> 0 | J14: 98 | K14: =SUM(K15:K19) -> 0 | L14: 128 | M14: 0 | N14: 158 | O14: =SUM(O15:O19) -> 0 | P14: 188 | Q14: =SUM(Q15:Q19) -> 0
B15: a) controllanti ………………………………….. | D15: 9 | E15: 0 | F15: 39 | G15: 0 | H15: 69 | I15: 0 | J15: 99 | K15: 0 | L15: 129 | M15: 0 | N15: 159 | P15: 189 | Q15: 0
B16: b) controllate ………………………………….. | D16: 10 | E16: 0 | F16: 40 | G16: 0 | H16: 70 | I16: 0 | J16: 100 | K16: 0 | L16: 130 | M16: 0 | N16: 160 | P16: 190 | Q16: 0
B17: c) consociate ………………………………….. | D17: 11 | E17: 0 | F17: 41 | G17: 0 | H17: 71 | I17: 0 | J17: 101 | K17: 0 | L17: 131 | M17: 0 | N17: 161 | P17: 191 | Q17: 0
B18: d) collegate ………………………………….. | D18: 12 | E18: 0 | F18: 42 | G18: 0 | H18: 72 | I18: 0 | J18: 102 | K18: 0 | L18: 132 | M18: 0 | N18: 162 | P18: 192 | Q18: 0
B19: e) altre ………………………………..……….. | D19: 13 | E19: 0 | F19: 43 | G19: 0 | H19: 73 | I19: 0 | J19: 103 | K19: 0 | L19: 133 | M19: 0 | N19: 163 | P19: 193 | Q19: 0
A20: Totale C.II.1 e C.II.2 (B) …………………………………….. | D20: 14 | E20: =SUM(E8,E14) -> 0 | F20: 44 | G20: =SUM(G8,G14) -> 0 | H20: 74 | I20: =SUM(I8,I14) -> 0 | J20: 104 | K20: =SUM(K8,K14) -> 0 | L20: 134 | M20: 0 | N20: 164 | O20: =SUM(O8,O14) -> 0 | P20: 194 | Q20: =SUM(Q8,Q14) -> 0
A21: C.III.1 | B21: Azioni e quote di imprese: ...................................................................................................................... | D21: 15 | E21: =SUM(E22:E24) -> 0 | F21: 45 | G21: =SUM(G22:G24) -> 0 | H21: 75 | I21: =SUM(I22:I24) -> 0 | J21: 105 | K21: =SUM(K22:K24) -> 0 | L21: 135 | M21: 0 | N21: 165 | O21: =SUM(O22:O24) -> 0 | P21: 195 | Q21: =SUM(Q22:Q24) -> 0
B22: a) azioni quotate ....................................................................................................... | D22: 16 | E22: 0 | F22: 46 | G22: 0 | H22: 76 | I22: 0 | J22: 106 | K22: 0 | L22: 136 | M22: 0 | N22: 166 | P22: 196 | Q22: 0
B23: b) azioni non quotate ....................................................................................................... | D23: 17 | E23: 0 | F23: 47 | G23: 0 | H23: 77 | I23: 0 | J23: 107 | K23: 0 | L23: 137 | M23: 0 | N23: 167 | P23: 197 | Q23: 0
B24: c) quote .................................................................................................................................. | D24: 18 | E24: 0 | F24: 48 | G24: 0 | H24: 78 | I24: 0 | J24: 108 | K24: 0 | L24: 138 | M24: 0 | N24: 168 | P24: 198 | Q24: 0
A25: C.III.2 | B25: Quote di fondi comuni di investimento .......................................................................... | D25: 19 | E25: 0 | F25: 49 | G25: 0 | H25: 79 | I25: 0 | J25: 109 | K25: 0 | L25: 139 | M25: 0 | N25: 169 | P25: 199 | Q25: 0
A26: C.III.3 | B26: Obbligazioni e altri titoli a reddito fisso ......................................................................................... | D26: 20 | E26: =SUM(E27:E31) -> 0 | F26: 50 | G26: =SUM(G27:G31) -> 0 | H26: 80 | I26: =SUM(I27:I31) -> 0 | J26: 110 | K26: =SUM(K27:K31) -> 0 | L26: 140 | M26: 0 | N26: 170 | O26: =SUM(O27:O31) -> 0 | P26: 200 | Q26: =SUM(Q27:Q31) -> 0
B27: a1) titoli di Stato quotati ....................................................................................................... | D27: 21 | E27: 0 | F27: 51 | G27: 0 | H27: 81 | I27: 0 | J27: 111 | K27: 0 | L27: 141 | M27: 0 | N27: 171 | P27: 201 | Q27: 0
B28: a2) altri titoli quotati ....................................................................................................... | D28: 22 | E28: 0 | F28: 52 | G28: 0 | H28: 82 | I28: 0 | J28: 112 | K28: 0 | L28: 142 | M28: 0 | N28: 172 | P28: 202 | Q28: 0
B29: b1) titoli di Stato non quotati ....................................................................................................... | D29: 23 | E29: 0 | F29: 53 | G29: 0 | H29: 83 | I29: 0 | J29: 113 | K29: 0 | L29: 143 | M29: 0 | N29: 173 | P29: 203 | Q29: 0
B30: b2) altri titoli non quotati ....................................................................................................... | D30: 24 | E30: 0 | F30: 54 | G30: 0 | H30: 84 | I30: 0 | J30: 114 | K30: 0 | L30: 144 | M30: 0 | N30: 174 | P30: 204 | Q30: 0
B31: c) obbligazioni convertibili ....................................................................................................... | D31: 25 | E31: 0 | F31: 55 | G31: 0 | H31: 85 | I31: 0 | J31: 115 | K31: 0 | L31: 145 | M31: 0 | N31: 175 | P31: 205 | Q31: 0
A32: C.III.5 | B32: Quote in investimenti comuni …………………… | D32: 26 | E32: 0 | F32: 56 | G32: 0 | H32: 86 | I32: 0 | J32: 116 | K32: 0 | L32: 146 | M32: 0 | N32: 176 | P32: 206 | Q32: 0
A33: C.III.7 | B33: Investimenti finanziari diversi ………………….. | D33: 27 | E33: 0 | F33: 57 | G33: 0 | H33: 87 | I33: 0 | J33: 117 | K33: 0 | L33: 147 | M33: 0 | N33: 177 | P33: 207 | Q33: 0
A34: Totale C.III.1, 2, 3, 5, 7 (C) …………………………………….. | D34: 28 | E34: =SUM(E21,E25,E26,E32,E33) -> 0 | F34: 58 | G34: =SUM(G21,G25,G26,G32,G33) -> 0 | H34: 88 | I34: =SUM(I21,I25,I26,I32,I33) -> 0 | J34: 118 | K34: =SUM(K21,K25,K26,K32,K33) -> 0 | L34: 148 | M34: 0 | N34: 178 | O34: =SUM(O21,O25,O26,O32,O33) -> 0 | P34: 208 | Q34: =SUM(Q21,Q25,Q26,Q32,Q33) -> 0
A35: Totale generale (A + B + C) ………………………… | D35: 29 | E35: =SUM(E7,E20,E34) -> 0 | F35: 59 | G35: =SUM(G7,G20,G34) -> 0 | H35: 89 | I35: =SUM(I7,I20,I34) -> 0 | J35: 119 | K35: =SUM(K7,K20,K34) -> 0 | L35: 149 | M35: 0 | N35: 179 | O35: =SUM(O7,O20,O34) -> 0 | P35: 209 | Q35: =SUM(Q7,Q20,Q34) -> 0
B36: Totale attività e plus/minus relative ad attivi inseriti nelle gestioni interne separate … | D36: =D35+1 -> 30 | E36: 0 | F36: =F35+1 -> 60 | G36: 0 | H36: =H35+1 -> 90 | I36: 0 | J36: =J35+1 -> 120 | K36: 0 | L36: =L35+1 -> 150 | M36: 0 | N36: 180 | P36: 210 | Q36: 0
A39: (1) Dovrà essere riportato il valore di carico senza operare alcuna rettifica infrannuale
A40: (2) Ai soli fini del monitoraggio in oggetto, nella determinazione del valore corrente degli investimenti quotati in mercati regolamentati, dovrà essere utilizzato il valore dell'ultimo giorno di transazione di ciascun mese
A41: (3) Dovranno essere riportate le rettifiche di valore operate rispetto al valore di carico evidenziato nell'ultimo monitoraggio dell'anno precedente.
A42: (4) Dovranno essere riportate le eventuali rivalutazioni su immobili operate ai sensi dell'art. 15, commi 16-23, del D. lgs 185/08 convertito con legge 2/09 e le eventuali riprese di valore operate su altri attivi rispetto al valore di carico evidenziato nell'ultimo monitoraggio dell'anno precedente.

Sheet vita_inv. a utilizz. non durev
A1: ="Società: " &'Foglio Informativo'!C4 -> Società: | H1: ="Codice: "&'Foglio Informativo'!J4 -> Codice: | Q1: Modello 1.5
A3: Gestione vita - Investimenti a utilizzo non durevole | E3: ='Foglio Informativo'!C6&":" -> Data di riferimento: | G3: ='Foglio Informativo'!E6 -> 31/01/2019 | Q3: (valori in migliaia di Euro)
D5: Valore di carico (1) | F5: Valore corrente (2) | H5: Plusvalenze latenti | J5: Minusvalenze | L5: Saldo plus - minusvalenze | N5: Rettifiche di valore (3) | Q5: Rivalutazioni ex lege e riprese di valore (4)
A7: C.I | B7: Terreni e fabbricati (A) ……………………………… | D7: 1 | E7: 0 | F7: 31 | G7: 0 | H7: 61 | I7: 0 | J7: 91 | K7: 0 | L7: 121 | M7: =I7-K7 -> 0 | N7: 151 | P7: 181 | Q7: 0
A8: C.II.1 | B8: Azioni e quote di imprese del gruppo e altre imprese partecipate ….……....……… | D8: =D7+1 -> 2 | E8: =SUM(E9:E13) -> 0 | F8: =F7+1 -> 32 | G8: =SUM(G9:G13) -> 0 | H8: =H7+1 -> 62 | I8: =SUM(I9:I13) -> 0 | J8: =J7+1 -> 92 | K8: =SUM(K9:K13) -> 0 | L8: =L7+1 -> 122 | M8: =I8-K8 -> 0 | N8: 152 | O8: =SUM(O9:O13) -> 0 | P8: 182 | Q8: =SUM(Q9:Q13) -> 0
B9: a) controllanti ………………………………….. | D9: 3 | E9: 0 | F9: 33 | G9: 0 | H9: 63 | I9: 0 | J9: 93 | K9: 0 | L9: 123 | M9: 0 | N9: 153 | P9: 183 | Q9: 0
B10: b) controllate ………………………………….. | D10: 4 | E10: 0 | F10: 34 | G10: 0 | H10: 64 | I10: 0 | J10: 94 | K10: 0 | L10: 124 | M10: 0 | N10: 154 | P10: 184 | Q10: 0
B11: c) consociate ………………………………….. | D11: 5 | E11: 0 | F11: 35 | G11: 0 | H11: 65 | I11: 0 | J11: 95 | K11: 0 | L11: 125 | M11: 0 | N11: 155 | P11: 185 | Q11: 0
B12: d) collegate ………………………………….. | D12: 6 | E12: 0 | F12: 36 | G12: 0 | H12: 66 | I12: 0 | J12: 96 | K12: 0 | L12: 126 | M12: 0 | N12: 156 | P12: 186 | Q12: 0
B13: e) altre ………………………………..……….. | D13: 7 | E13: 0 | F13: 37 | G13: 0 | H13: 67 | I13: 0 | J13: 97 | K13: 0 | L13: 127 | M13: 0 | N13: 157 | P13: 187 | Q13: 0
A14: C.II.2 | B14: Obbligazioni emesse da imprese del gruppo e altre imprese partecipate ………..……… | D14: 8 | E14: =SUM(E15:E19) -> 0 | F14: 38 | G14: =SUM(G15:G19) -> 0 | H14: 68 | I14: =SUM(I15:I19) -> 0 | J14: 98 | K14: =SUM(K15:K19) -> 0 | L14: 128 | M14: 0 | N14: 158 | O14: =SUM(O15:O19) -> 0 | P14: 188 | Q14: =SUM(Q15:Q19) -> 0
B15: a) controllanti ………………………………….. | D15: 9 | E15: 0 | F15: 39 | G15: 0 | H15: 69 | I15: 0 | J15: 99 | K15: 0 | L15: 129 | M15: 0 | N15: 159 | P15: 189 | Q15: 0
B16: b) controllate ………………………………….. | D16: 10 | E16: 0 | F16: 40 | G16: 0 | H16: 70 | I16: 0 | J16: 100 | K16: 0 | L16: 130 | M16: 0 | N16: 160 | P16: 190 | Q16: 0
B17: c) consociate ………………………………….. | D17: 11 | E17: 0 | F17: 41 | G17: 0 | H17: 71 | I17: 0 | J17: 101 | K17: 0 | L17: 131 | M17: 0 | N17: 161 | P17: 191 | Q17: 0
B18: d) collegate ………………………………….. | D18: 12 | E18: 0 | F18: 42 | G18: 0 | H18: 72 | I18: 0 | J18: 102 | K18: 0 | L18: 132 | M18: 0 | N18: 162 | P18: 192 | Q18: 0
B19: e) altre ………………………………..……….. | D19: 13 | E19: 0 | F19: 43 | G19: 0 | H19: 73 | I19: 0 | J19: 103 | K19: 0 | L19: 133 | M19: 0 | N19: 163 | P19: 193 | Q19: 0
A20: Totale C.II.1 e C.II.2 (B) …………………………………….. | D20: 14 | E20: =SUM(E8,E14) -> 0 | F20: 44 | G20: =SUM(G8,G14) -> 0 | H20: 74 | I20: =SUM(I8,I14) -> 0 | J20: 104 | K20: =SUM(K8,K14) -> 0 | L20: 134 | M20: 0 | N20: 164 | O20: =SUM(O8,O14) -> 0 | P20: 194 | Q20: =SUM(Q8,Q14) -> 0
A21: C.III.1 | B21: Azioni e quote di imprese: ...................................................................................................................... | D21: 15 | E21: =SUM(E22:E24) -> 0 | F21: 45 | G21: =SUM(G22:G24) -> 0 | H21: 75 | I21: =SUM(I22:I24) -> 0 | J21: 105 | K21: =SUM(K22:K24) -> 0 | L21: 135 | M21: 0 | N21: 165 | O21: =SUM(O22:O24) -> 0 | P21: 195 | Q21: =SUM(Q22:Q24) -> 0
B22: a) azioni quotate ....................................................................................................... | D22: 16 | E22: 0 | F22: 46 | G22: 0 | H22: 76 | I22: 0 | J22: 106 | K22: 0 | L22: 136 | M22: 0 | N22: 166 | P22: 196 | Q22: 0
B23: b) azioni non quotate ....................................................................................................... | D23: 17 | E23: 0 | F23: 47 | G23: 0 | H23: 77 | I23: 0 | J23: 107 | K23: 0 | L23: 137 | M23: 0 | N23: 167 | P23: 197 | Q23: 0
B24: c) quote .................................................................................................................................. | D24: 18 | E24: 0 | F24: 48 | G24: 0 | H24: 78 | I24: 0 | J24: 108 | K24: 0 | L24: 138 | M24: 0 | N24: 168 | P24: 198 | Q24: 0
A25: C.III.2 | B25: Quote di fondi comuni di investimento .......................................................................... | D25: 19 | E25: 0 | F25: 49 | G25: 0 | H25: 79 | I25: 0 | J25: 109 | K25: 0 | L25: 139 | M25: 0 | N25: 169 | P25: 199 | Q25: 0
A26: C.III.3 | B26: Obbligazioni e altri titoli a reddito fisso ......................................................................................... | D26: 20 | E26: =SUM(E27:E31) -> 0 | F26: 50 | G26: =SUM(G27:G31) -> 0 | H26: 80 | I26: =SUM(I27:I31) -> 0 | J26: 110 | K26: =SUM(K27:K31) -> 0 | L26: 140 | M26: 0 | N26: 170 | O26: =SUM(O27:O31) -> 0 | P26: 200 | Q26: =SUM(Q27:Q31) -> 0
B27: a1) titoli di Stato quotati ....................................................................................................... | D27: 21 | E27: 0 | F27: 51 | G27: 0 | H27: 81 | I27: 0 | J27: 111 | K27: 0 | L27: 141 | M27: 0 | N27: 171 | P27: 201 | Q27: 0
B28: a2) altri titoli quotati ....................................................................................................... | D28: 22 | E28: 0 | F28: 52 | G28: 0 | H28: 82 | I28: 0 | J28: 112 | K28: 0 | L28: 142 | M28: 0 | N28: 172 | P28: 202 | Q28: 0
B29: b1) titoli di Stato non quotati ....................................................................................................... | D29: 23 | E29: 0 | F29: 53 | G29: 0 | H29: 83 | I29: 0 | J29: 113 | K29: 0 | L29: 143 | M29: 0 | N29: 173 | P29: 203 | Q29: 0
B30: b2) altri titoli non quotati ....................................................................................................... | D30: 24 | E30: 0 | F30: 54 | G30: 0 | H30: 84 | I30: 0 | J30: 114 | K30: 0 | L30: 144 | M30: 0 | N30: 174 | P30: 204 | Q30: 0
B31: c) obbligazioni convertibili ....................................................................................................... | D31: 25 | E31: 0 | F31: 55 | G31: 0 | H31: 85 | I31: 0 | J31: 115 | K31: 0 | L31: 145 | M31: 0 | N31: 175 | P31: 205 | Q31: 0
A32: C.III.5 | B32: Quote in investimenti comuni …………………… | D32: 26 | E32: 0 | F32: 56 | G32: 0 | H32: 86 | I32: 0 | J32: 116 | K32: 0 | L32: 146 | M32: 0 | N32: 176 | P32: 206 | Q32: 0
A33: C.III.7 | B33: Investimenti finanziari diversi ………………….. | D33: 27 | F33: 57 | G33: 0 | H33: 87 | I33: 0 | J33: 117 | K33: 0 | L33: 147 | M33: 0 | N33: 177 | P33: 207 | Q33: 0
A34: Totale C.III.1, 2, 3, 5, 7 (C) …………………………………….. | D34: 28 | E34: =SUM(E21,E25,E26,E32,E33) -> 0 | F34: 58 | G34: =SUM(G21,G25,G26,G32,G33) -> 0 | H34: 88 | I34: =SUM(I21,I25,I26,I32,I33) -> 0 | J34: 118 | K34: =SUM(K21,K25,K26,K32,K33) -> 0 | L34: 148 | M34: 0 | N34: 178 | O34: =SUM(O21,O25,O26,O32,O33) -> 0 | P34: 208 | Q34: =SUM(Q21,Q25,Q26,Q32,Q33) -> 0
A35: Totale generale (A + B + C) ………………………… | D35: 29 | E35: =SUM(E7,E20,E34) -> 0 | F35: 59 | G35: =SUM(G7,G20,G34) -> 0 | H35: 89 | I35: =SUM(I7,I20,I34) -> 0 | J35: 119 | K35: =SUM(K7,K20,K34) -> 0 | L35: 149 | M35: 0 | N35: 179 | O35: =SUM(O7,O20,O34) -> 0 | P35: 209 | Q35: =SUM(Q7,Q20,Q34) -> 0
B36: Totale attività e plus/minus relative ad attivi inseriti nelle gestioni interne separate … | D36: 30 | E36: 0 | F36: 60 | G36: 0 | H36: 90 | I36: 0 | J36: 120 | K36: 0 | L36: 150 | M36: 0 | N36: 180 | P36: 210 | Q36: 0
A39: (1) Dovrà essere riportato il valore di carico senza operare alcuna rettifica infrannuale
A40: (2) Ai soli fini del monitoraggio in oggetto, nella determinazione del valore corrente degli investimenti quotati in mercati regolamentati, dovrà essere utilizzato il valore dell'ultimo giorno di transazione di ciascun mese
A41: (3) Dovranno essere riportate le rettifiche di valore operate rispetto al valore di carico evidenziato nell'ultimo monitoraggio dell'anno precedente.
A42: (4) Dovranno essere riportate le eventuali rivalutazioni su immobili operate ai sensi dell'art. 15, commi 16-23, del D. lgs 185/08 convertito con legge 2/09 e le eventuali riprese di valore operate su altri attivi rispetto al valore di carico evidenziato nell'ultimo monitoraggio dell'anno precedente.

Sheet vita_totale investimenti
A1: ="Società: " &'Foglio Informativo'!C4 -> Società: | H1: ="Codice: "&'Foglio Informativo'!J4 -> Codice: | Q1: Modello 1.6
A3: Gestione vita - Totale investimenti | E3: ='Foglio Informativo'!C6&":" -> Data di riferimento: | G3: ='Foglio Informativo'!E6 -> 31/01/2019 | Q3: (valori in migliaia di Euro)
D5: Valore di carico (1) | F5: Valore corrente (2) | H5: Plusvalenze latenti | J5: Minusvalenze | L5: Saldo plus - minusvalenze | N5: Rettifiche di valore (3) | Q5: Rivalutazioni ex lege e riprese di valore (4)
A7: C.I | B7: Terreni e fabbricati (A) ……………………………………. | D7: 1 | E7: 0 | F7: 31 | G7: 0 | H7: 61 | I7: 0 | J7: 91 | K7: 0 | L7: 121 | M7: =I7-K7 -> 0 | N7: 151 | P7: 181 | Q7: 0
A8: C.II.1 | B8: Azioni e quote di imprese del gruppo e altre imprese partecipate …..…....……… | D8: =D7+1 -> 2 | E8: =SUM(E9:E13) -> 0 | F8: =F7+1 -> 32 | G8: =SUM(G9:G13) -> 0 | H8: =H7+1 -> 62 | I8: =SUM(I9:I13) -> 0 | J8: =J7+1 -> 92 | K8: =SUM(K9:K13) -> 0 | L8: =L7+1 -> 122 | M8: =I8-K8 -> 0 | N8: 152 | O8: =SUM(O9:O13) -> 0 | P8: 182 | Q8: =SUM(Q9:Q13) -> 0
B9: a) controllanti ………………………………….. | D9: 3 | E9: 0 | F9: 33 | G9: 0 | H9: 63 | I9: 0 | J9: 93 | K9: 0 | L9: 123 | M9: 0 | N9: 153 | P9: 183 | Q9: 0
B10: b) controllate ………………………………….. | D10: 4 | E10: 0 | F10: 34 | G10: 0 | H10: 64 | I10: 0 | J10: 94 | K10: 0 | L10: 124 | M10: 0 | N10: 154 | P10: 184 | Q10: 0
B11: c) consociate ………………………………….. | D11: 5 | E11: 0 | F11: 35 | G11: 0 | H11: 65 | I11: 0 | J11: 95 | K11: 0 | L11: 125 | M11: 0 | N11: 155 | P11: 185 | Q11: 0
B12: d) collegate ………………………………….. | D12: 6 | E12: 0 | F12: 36 | G12: 0 | H12: 66 | I12: 0 | J12: 96 | K12: 0 | L12: 126 | M12: 0 | N12: 156 | P12: 186 | Q12: 0
B13: e) altre ………………………………..……….. | D13: 7 | E13: 0 | F13: 37 | G13: 0 | H13: 67 | I13: 0 | J13: 97 | K13: 0 | L13: 127 | M13: 0 | N13: 157 | P13: 187 | Q13: 0
A14: C.II.2 | B14: Obbligazioni emesse da imprese del gruppo e altre imprese partecipate ….…..……… | D14: 8 | E14: =SUM(E15:E19) -> 0 | F14: 38 | G14: =SUM(G15:G19) -> 0 | H14: 68 | I14: =SUM(I15:I19) -> 0 | J14: 98 | K14: =SUM(K15:K19) -> 0 | L14: 128 | M14: 0 | N14: 158 | O14: =SUM(O15:O19) -> 0 | P14: 188 | Q14: =SUM(Q15:Q19) -> 0
B15: a) controllanti ………………………………….. | D15: 9 | E15: 0 | F15: 39 | G15: 0 | H15: 69 | I15: 0 | J15: 99 | K15: 0 | L15: 129 | M15: 0 | N15: 159 | P15: 189 | Q15: 0
B16: b) controllate ………………………………….. | D16: 10 | E16: 0 | F16: 40 | G16: 0 | H16: 70 | I16: 0 | J16: 100 | K16: 0 | L16: 130 | M16: 0 | N16: 160 | P16: 190 | Q16: 0
B17: c) consociate ………………………………….. | D17: 11 | E17: 0 | F17: 41 | G17: 0 | H17: 71 | I17: 0 | J17: 101 | K17: 0 | L17: 131 | M17: 0 | N17: 161 | P17: 191 | Q17: 0
B18: d) collegate ………………………………….. | D18: 12 | E18: 0 | F18: 42 | G18: 0 | H18: 72 | I18: 0 | J18: 102 | K18: 0 | L18: 132 | M18: 0 | N18: 162 | P18: 192 | Q18: 0
B19: e) altre ………………………………..……….. | D19: 13 | E19: 0 | F19: 43 | G19: 0 | H19: 73 | I19: 0 | J19: 103 | K19: 0 | L19: 133 | M19: 0 | N19: 163 | P19: 193 | Q19: 0
A20: Totale C.II.1 e C.II.2 (B) …………………………………….. | D20: 14 | E20: =SUM(E8,E14) -> 0 | F20: 44 | G20: =SUM(G8,G14) -> 0 | H20: 74 | I20: =SUM(I8,I14) -> 0 | J20: 104 | K20: =SUM(K8,K14) -> 0 | L20: 134 | M20: 0 | N20: 164 | O20: =SUM(O8,O14) -> 0 | P20: 194 | Q20: =SUM(Q8,Q14) -> 0
A21: C.III.1 | B21: Azioni e quote di imprese: ...................................................................................................................... | D21: 15 | E21: =SUM(E22:E24) -> 0 | F21: 45 | G21: =SUM(G22:G24) -> 0 | H21: 75 | I21: =SUM(I22:I24) -> 0 | J21: 105 | K21: =SUM(K22:K24) -> 0 | L21: 135 | M21: 0 | N21: 165 | O21: =SUM(O22:O24) -> 0 | P21: 195 | Q21: =SUM(Q22:Q24) -> 0
B22: a) azioni quotate ....................................................................................................... | D22: 16 | E22: 0 | F22: 46 | G22: 0 | H22: 76 | I22: 0 | J22: 106 | K22: 0 | L22: 136 | M22: 0 | N22: 166 | P22: 196 | Q22: 0
B23: b) azioni non quotate ....................................................................................................... | D23: 17 | E23: 0 | F23: 47 | G23: 0 | H23: 77 | I23: 0 | J23: 107 | K23: 0 | L23: 137 | M23: 0 | N23: 167 | P23: 197 | Q23: 0
B24: c) quote .................................................................................................................................. | D24: 18 | E24: 0 | F24: 48 | G24: 0 | H24: 78 | I24: 0 | J24: 108 | K24: 0 | L24: 138 | M24: 0 | N24: 168 | P24: 198 | Q24: 0
A25: C.III.2 | B25: Quote di fondi comuni di investimento .......................................................................... | D25: 19 | E25: 0 | F25: 49 | G25: 0 | H25: 79 | I25: 0 | J25: 109 | K25: 0 | L25: 139 | M25: 0 | N25: 169 | P25: 199 | Q25: 0
A26: C.III.3 | B26: Obbligazioni e altri titoli a reddito fisso ......................................................................................... | D26: 20 | E26: =SUM(E27:E31) -> 0 | F26: 50 | G26: =SUM(G27:G31) -> 0 | H26: 80 | I26: =SUM(I27:I31) -> 0 | J26: 110 | K26: =SUM(K27:K31) -> 0 | L26: 140 | M26: 0 | N26: 170 | O26: =SUM(O27:O31) -> 0 | P26: 200 | Q26: =SUM(Q27:Q31) -> 0
B27: a1) titoli di Stato quotati ....................................................................................................... | D27: 21 | E27: 0 | F27: 51 | G27: 0 | H27: 81 | I27: 0 | J27: 111 | K27: 0 | L27: 141 | M27: 0 | N27: 171 | P27: 201 | Q27: 0
B28: a2) altri titoli quotati ....................................................................................................... | D28: 22 | E28: 0 | F28: 52 | G28: 0 | H28: 82 | I28: 0 | J28: 112 | K28: 0 | L28: 142 | M28: 0 | N28: 172 | P28: 202 | Q28: 0
B29: b1) titoli di Stato non quotati ....................................................................................................... | D29: 23 | E29: 0 | F29: 53 | G29: 0 | H29: 83 | I29: 0 | J29: 113 | K29: 0 | L29: 143 | M29: 0 | N29: 173 | P29: 203 | Q29: 0
B30: b2) altri titoli non quotati ....................................................................................................... | D30: 24 | E30: 0 | F30: 54 | G30: 0 | H30: 84 | I30: 0 | J30: 114 | K30: 0 | L30: 144 | M30: 0 | N30: 174 | P30: 204 | Q30: 0
B31: c) obbligazioni convertibili ....................................................................................................... | D31: 25 | E31: 0 | F31: 55 | G31: 0 | H31: 85 | I31: 0 | J31: 115 | K31: 0 | L31: 145 | M31: 0 | N31: 175 | P31: 205 | Q31: 0
A32: C.III.5 | B32: Quote in investimenti comuni …………………… | D32: 26 | E32: 0 | F32: 56 | G32: 0 | H32: 86 | I32: 0 | J32: 116 | K32: 0 | L32: 146 | M32: 0 | N32: 176 | P32: 206 | Q32: 0
A33: C.III.7 | B33: Investimenti finanziari diversi ………………….. | D33: 27 | E33: 0 | F33: 57 | G33: 0 | H33: 87 | I33: 0 | J33: 117 | K33: 0 | L33: 147 | M33: 0 | N33: 177 | P33: 207 | Q33: 0
A34: Totale C.III.1, 2, 3, 5, 7 (C) …………………………………….. | D34: 28 | E34: =SUM(E21,E25,E26,E32,E33) -> 0 | F34: 58 | G34: =SUM(G21,G25,G26,G32,G33) -> 0 | H34: 88 | I34: =SUM(I21,I25,I26,I32,I33) -> 0 | J34: 118 | K34: =SUM(K21,K25,K26,K32,K33) -> 0 | L34: 148 | M34: 0 | N34: 178 | O34: =SUM(O21,O25,O26,O32,O33) -> 0 | P34: 208 | Q34: =SUM(Q21,Q25,Q26,Q32,Q33) -> 0
A35: Totale generale (A + B + C) ………………………… | D35: 29 | E35: =SUM(E7,E20,E34) -> 0 | F35: 59 | G35: =SUM(G7,G20,G34) -> 0 | H35: 89 | I35: =SUM(I7,I20,I34) -> 0 | J35: 119 | K35: =SUM(K7,K20,K34) -> 0 | L35: 149 | M35: 0 | N35: 179 | O35: =SUM(O7,O20,O34) -> 0 | P35: 209 | Q35: =SUM(Q7,Q20,Q34) -> 0
B36: Totale attività e plus/minus relative ad attivi inseriti nelle gestioni interne separate …….. | D36: 30 | E36: 0 | F36: 60 | G36: 0 | H36: 90 | I36: 0 | J36: 120 | K36: 0 | L36: 150 | M36: 0 | N36: 180 | P36: 210 | Q36: 0
A39: (1) Dovrà essere riportato il valore di carico senza operare alcuna rettifica infrannuale
A40: (2) Ai soli fini del monitoraggio in oggetto, nella determinazione del valore corrente degli investimenti quotati in mercati regolamentati, dovrà essere utilizzato il valore dell'ultimo giorno di transazione di ciascun mese
A41: (3) Dovranno essere riportate le rettifiche di valore operate rispetto al valore di carico evidenziato nell'ultimo monitoraggio dell'anno precedente.
A42: (4) Dovranno essere riportate le eventuali rivalutazioni su immobili operate ai sensi dell'art. 15, commi 16-23, del D. lgs 185/08 convertito con legge 2/09 e le eventuali riprese di valore operate su altri attivi rispetto al valore di carico evidenziato nell'ultimo monitoraggio dell'anno precedente.

Sheet mese corrente
A1: ="Società: " &'Foglio Informativo'!C4 -> Società: | H1: ="Codice: "&'Foglio Informativo'!J4 -> Codice:
A3: Rami vita - Portafoglio diretto italiano - Dettaglio per ramo dei premi contabilizzati | S3: (Valori in migliaia di Euro)
F6: Premi di 1° annualità | H6: Premi di annualità successive | J6: Premi unici | L6: Premi complessivi | N6: Oneri relativi ai sinistri | P6: Riscatti | R6: Capitali e rendite maturati
F7: (1) | H7: (2) | J7: (3) | L7: (4) | N7: (5) | P7: (6) | R7: (7)
B9: I. | C9: Le assicurazioni sulla durata della vita umana ............................................................................................................................ | F9: 1 | G9: 0 | H9: 11 | I9: 0 | J9: 21 | K9: 0 | L9: 31 | M9: =SUM(G9,I9,K9) -> 0 | N9: 41 | O9: 0 | P9: 51 | Q9: 0 | R9: 61 | S9: 0
B10: II. | C10: Le assicurazioni di nuzialità e natalità ..................................................................................................................... | F10: 2 | G10: 0 | H10: 12 | I10: 0 | J10: 22 | K10: 0 | L10: 32 | M10: 0 | N10: 42 | O10: 0 | P10: 52 | Q10: 0 | R10: 62 | S10: 0
B11: III. | C11: Le assicurazioni di cui ai punti I e II connesse con fondi di investimento .........……………..……...…..….… | F11: 3 | G11: 0 | H11: 13 | I11: 0 | J11: 23 | K11: 0 | L11: 33 | M11: 0 | N11: 43 | O11: 0 | P11: 53 | Q11: 0 | R11: 63 | S11: 0
B12: IV. | C12: L'assicurazione malattia di cui art. 1, n. 1 lettera d) dir. CEE 79/267 ..............................…...............................… | F12: 4 | G12: 0 | H12: 14 | I12: 0 | J12: 24 | K12: 0 | L12: 34 | M12: 0 | N12: 44 | O12: 0 | P12: 54 | Q12: 0 | R12: 64 | S12: 0
B13: V. | C13: Le operazioni di capitalizzazione di cui all'art. 40 D.lgs. 174/95 .............................................................................. | F13: 5 | G13: 0 | H13: 15 | I13: 0 | J13: 25 | K13: 0 | L13: 35 | M13: 0 | N13: 45 | O13: 0 | P13: 55 | Q13: 0 | R13: 65 | S13: 0
B14: VI. | C14: Le operazioni di gestione di fondi pensione ................................................................ | F14: 6 | G14: 0 | H14: 16 | I14: 0 | J14: 26 | K14: 0 | L14: 36 | M14: 0 | N14: 46 | O14: 0 | P14: 56 | Q14: 0 | R14: 66 | S14: 0
B15: Totale ..................................................................................................................................... | F15: 7 | G15: =SUM(G9:G14) -> 0 | H15: 17 | I15: =SUM(I9:I14) -> 0 | J15: 27 | K15: =SUM(K9:K14) -> 0 | L15: 37 | M15: =SUM(M9:M14) -> 0 | N15: 47 | O15: =SUM(O9:O14) -> 0 | P15: 57 | Q15: =SUM(Q9:Q14) -> 0 | R15: 67 | S15: =SUM(S9:S14) -> 0
A18: (1) | B18: Modulo 20 voce 1
A19: (2) | B19: Modulo 20 voce 2
A20: (3) | B20: Modulo 20 voce 3
A21: (4) | B21: Modulo 20 voce 4
A22: (5) | B22: Modulo 20 voce 22
A23: (6) | B23: Modulo 20 voci 13 + 18 - 7
A24: (7) | B24: Modulo 20 voci 12 + 17 - 6

Sheet dati cumulati da 1 gen
A1: ="Società: " &'Foglio Informativo'!C4 -> Società: | H1: ="Codice: "&'Foglio Informativo'!J4 -> Codice:
A3: Rami vita - Portafoglio diretto italiano - Dettaglio per ramo dei premi contabilizzati | S3: (Valori in migliaia di Euro)
F6: Premi di 1° annualità | H6: Premi di annualità successive | J6: Premi unici | L6: Premi complessivi | N6: Oneri relativi ai sinistri | P6: Riscatti | R6: Capitali e rendite maturati
F7: (1) | H7: (2) | J7: (3) | L7: (4) | N7: (5) | P7: (6) | R7: (7)
B9: I. | C9: Le assicurazioni sulla durata della vita umana ............................................................................................................................ | F9: 1 | G9: 0 | H9: 11 | I9: 0 | J9: 21 | K9: 0 | L9: 31 | M9: =SUM(G9,I9,K9) -> 0 | N9: 41 | O9: 0 | P9: 51 | Q9: 0 | R9: 61 | S9: 0
B10: II. | C10: Le assicurazioni di nuzialità e natalità ..................................................................................................................... | F10: 2 | G10: 0 | H10: 12 | I10: 0 | J10: 22 | K10: 0 | L10: 32 | M10: 0 | N10: 42 | O10: 0 | P10: 52 | Q10: 0 | R10: 62 | S10: 0
B11: III. | C11: Le assicurazioni di cui ai punti I e II connesse con fondi di investimento .........……………..……...…..….… | F11: 3 | G11: 0 | H11: 13 | I11: 0 | J11: 23 | K11: 0 | L11: 33 | M11: 0 | N11: 43 | O11: 0 | P11: 53 | Q11: 0 | R11: 63 | S11: 0
B12: IV. | C12: L'assicurazione malattia di cui art. 1, n. 1 lettera d) dir. CEE 79/267 ..............................…...............................… | F12: 4 | G12: 0 | H12: 14 | I12: 0 | J12: 24 | K12: 0 | L12: 34 | M12: 0 | N12: 44 | O12: 0 | P12: 54 | Q12: 0 | R12: 64 | S12: 0
B13: V. | C13: Le operazioni di capitalizzazione di cui all'art. 40 D.lgs. 174/95 .............................................................................. | F13: 5 | G13: 0 | H13: 15 | I13: 0 | J13: 25 | K13: 0 | L13: 35 | M13: 0 | N13: 45 | O13: 0 | P13: 55 | Q13: 0 | R13: 65 | S13: 0
B14: VI. | C14: Le operazioni di gestione di fondi pensione ................................................................ | F14: 6 | G14: 0 | H14: 16 | I14: 0 | J14: 26 | K14: 0 | L14: 36 | M14: 0 | N14: 46 | O14: 0 | P14: 56 | Q14: 0 | R14: 66 | S14: 0
B15: Totale ..................................................................................................................................... | F15: 7 | G15: =SUM(G9:G14) -> 0 | H15: 17 | I15: =SUM(I9:I14) -> 0 | J15: 27 | K15: =SUM(K9:K14) -> 0 | L15: 37 | M15: =SUM(M9:M14) -> 0 | N15: 47 | O15: =SUM(O9:O14) -> 0 | P15: 57 | Q15: =SUM(Q9:Q14) -> 0 | R15: 67 | S15: =SUM(S9:S14) -> 0
A18: (1) | B18: Modulo 20 voce 1
A19: (2) | B19: Modulo 20 voce 2
A20: (3) | B20: Modulo 20 voce 3
A21: (4) | B21: Modulo 20 voce 4
A22: (5) | B22: Modulo 20 voce 22
A23: (6) | B23: Modulo 20 voci 13 + 18 - 7
A24: (7) | B24: Modulo 20 voci 12 + 17 - 6
